Workbook

Sheet T. Eletricista
B2: Contratação de empresa especializada para serviços de expansão, operação e manutenção preventiva e corretiva necessários para a execução dos serviços nos equipamentos da Central de Ar Condicionados
A5: Planilha de Proposta de Preço
B6: Processo nº:59500.0001034/2013-56
B7: Licitação nº__________ Pregão Eletrônico nº ____/2013
A8: Dia _______/_____________/____________ às _____:_____ horas
A13: A | B13: Data da Apresentação da Proposta
A14: B | B14: Município/UF | C14: Brasília/DF
A15: C | B15: Ano Arcordo, Convenção Coletiva ou Sentença Normativa em Dissídio Coletivo. | C15: 2013
A16: D | B16: N° de meses de execução contratual | C16: 12 meses
B18: Mão de Obra vinculada à execução contratual
B19: Dados complementares para composição dos custos referentes à mão-de-obra
A20: 1 | B20: Tipo de Serviço | C20: Eletricista
A21: 2 | B21: Salário normativo da categoria profissional | C21: 1151.58
A22: 3 | B22: Categoria profissional | C22: Eletricista
A23: 4 | B23: Data base da categoria | C23: 1° de janeiro de 2013
B26: Módulo 1: Composição da Remuneração
A28: 1 | B28: Composição da Remuneração | C28: Percentual | D28: Salário | E28: Total
A29: A | B29: Salário Base da Categoria | D29: 1151.58 | E29: =D29 -> 1151.58
A30: B | B30: Adicional de Periculosidade | C30: 0 | D30: =D29*C30 -> 0 | E30: =D30 -> 0
A31: C | B31: Adicional de Insalubridade | C31: 0 | D31: 0 | E31: =D31*15 -> 0
A32: D | B32: Intervalo Intrajornada | C32: 0 | D32: 0 | E32: =D32*15 -> 0
A33: E | B33: Outros | C33: 0 | D33: =D29*C33 -> 0 | E33: 0
A34: Total da Remuneração | E34: =E29+E30+E31 -> 1151.58
B38: Módulo 2: Benefícios Mensais e Diários
A40: 2 | B40: Benefícios Mensais e Diários | D40: Valor
A41: A | B41: Transporte (R$3,00 x 2 vales x 22 dias) (R$ 1151,58 x 6%) | C41: 0 | D41: =3*2*22 -> 132
A42: B | B42: Auxílio Alimentação (R$18,00 x 22 dias) | C42: 0 | D42: =18*22 -> 396
A43: C | B43: Assistencia Médica e odontológica * (CCT 2013) | C43: 0 | D43: 4
A44: D | B44: Auxílio Creche | C44: 0
A45: E | B45: Seguro de Vida * | C45: 0
A46: F | B46: Auxílio Invalidez | C46: 0
A47: G | B47: Auxílio Funeral | C47: 0
A48: H | B48: Outros | C48: 0
A49: total de benefícios mensais e diários | C49: 0 | D49: =D41+D42+D43+D44+D45+D46+D47 -> 532
B51: Módulo 3: Insumos Diversos
A53: 3 | B53: Insumos Diversos | D53: Valor
A54: A | B54: Uniformes | D54: =(F173+F174+F175)/12 -> 34.9
A55: B | B55: Materiais | D55: 0
A56: C | B56: EPIs | D56: =(F177+F178+F179+F180)/12 -> 27.24416667
A57: D | B57: Outros | D57: 0
B58: Total de Insumos Diversos | D58: =SUM(D54:D57) -> 62.14416667
B60: Módulo 4:Encargos Sociais e Trabalhistas
B62: Submódulo 4.1: Encargos Previdenciários e FGTS
A63: 4.1 | B63: Encargos Previdenciários e FGTS | C63: % | D63: Valor (R$)
A64: A | B64: INSS (art. 22,inc. I da Lei 8212/91) | C64: 0.2 | D64: =C64*E34 -> 230.316
A65: B | B65: SESI OU SESC | C65: 0.015 | D65: =C65*E34 -> 17.2737
A66: C | B66: SENAI OU SENAC | C66: 0.01 | D66: =C66*E34 -> 11.5158
A67: D | B67: INCRA | C67: 0.002 | D67: =C67*E34 -> 2.30316
A68: E | B68: Salário Educação | C68: 0.025 | D68: =C68*E34 -> 28.7895
A69: F | B69: FGTS | C69: 0.08 | D69: =C69*E34 -> 92.1264
A70: G | B70: SEBRAE | C70: 0.006 | D70: =C70*E34 -> 6.90948
A71: H | B71: Seguro Acidente de Trabalho (decreto 6042/2007) | C71: 0.02 | D71: =C71*E34 -> 23.0316
A72: Total | C72: =SUM(C64:C71) -> 0.358 | D72: =C72*E34 -> 412.26564
B76: Submódulo 4.2: 13° Salário e Adicional de Férias
A77: 4.2 | B77: 13° Salário e Adicional de Férias | D77: Valor
A78: A | B78: 13° Salário - Manual MPOG | C78: 0.0893 | D78: =C78*E34 -> 102.836094
A79: B | B79: Adicional de Férias - Manual MPOG | C79: 0.0298 | D79: =C79*E34 -> 34.317084
A80: C | B80: Subtotal | C80: 0.119 | D80: =C80*E34 -> 137.03802
A81: D | B81: Incidência do Submódulo 4.1 sobre o 13° Salário e adicional de Férias | C81: =C72*C80 -> 0.042602 | D81: =C81*E34 -> 49.05961116
A82: total | C82: =C80+C81 -> 0.161602 | D82: =D80+D81 -> 186.0976312
B85: Submódulo 4.3:Afastamento Maternidade
A86: 4.3 | B86: Afastamento Maternidade | D86: Valor
A87: A | B87: Afastamento Maternidade ( CCT 2013) | C87: 0 | D87: 0
A88: B | B88: Incidência do submódulo 4.1 sobre afastamento maternidade | C88: 0 | D88: 0
B89: total | C89: 0 | D89: 0
B92: Submódulo 4.4: Provisão para Rescisão
A93: 4.4 | B93: Provisão para Rescisão | D93: Valor (R$)
A94: A | B94: Aviso prévio Indenizado (Portaria n° 7 da IN n°2/2008) | C94: =0.42% -> 0.0042 | D94: =C94*E34 -> 4.836636
A95: B | B95: Incidencia do FGTS sobre aviso prévio indenizado (provisão para rescisão) | C95: 0.0003 | D95: =C95*E34 -> 0.345474
A96: C | B96: Multa do FGTS do Aviso prévio indenizado (Manual do MPOG) | C96: 0.0435 | D96: =C96*E34 -> 50.09373
A97: D | B97: Aviso prévio trabalhado - Manual MPOG | C97: 0.0004 | D97: =C97*E34 -> 0.460632
A98: E | B98: Incidencia do submódulo 4.1 sobre o aviso prévio trabalhado | C98: 0.0001 | D98: =C98*E34 -> 0.115158
A99: F | B99: Multa FGTS do aviso prévio trabalhado | C99: 0.04 | D99: =C99*E34 -> 46.0632
A100: Total | C100: =SUM(C94:C99) -> 0.0885 | D100: =C100*E34 -> 101.91483
B103: Submódulo 4.5: Custo de Reposição do Profissional Ausente
A104: 4.5 | B104: Composição do Custo de Reposição do Profissional Ausente | D104: Valor (R$)
A105: A | B105: Férias (Portaria n° 7 da IN n°2/2008) | C105: 0.0893 | D105: =C105*E34 -> 102.836094
A106: B | B106: Ausencia por doença (Portaria n° 7 da IN n°2/2008) | C106: 0.0166 | D106: =C106*E34 -> 19.116228
A107: C | B107: Licença paternidade (Portaria n° 7 da IN n°2/2008) | C107: 0.0002 | D107: =C107*E34 -> 0.230316
A108: D | B108: Ausências Legais | C108: 0.0082 | D108: =C108*E34 -> 9.442956
A109: E | B109: Ausências por acidente de trabalho | C109: 0.0003 | D109: =C109*E34 -> 0.345474
A110: F | B110: Outros | C110: 0 | D110: =C110*E34 -> 0
B111: Subtotal | C111: =SUM(C105:C110) -> 0.1146 | D111: =C111*E34 -> 131.971068
A112: G | B112: Inciencia do submódulo 4.1 sobre o custo de reposição | C112: =C111*C72 -> 0.0410268 | D112: =C112*E34 -> 47.24564234
B113: Total | C113: =C111+C112 -> 0.1556268 | D113: =D111+D112 -> 179.2167103
B116: Quadro Resumo - Módulo 4 - Encargos Sociais e Trabalhistas
A118: 4 | B118: Encargos Sociais e Trabalhistas | D118: Valor
A119: 4.1 | B119: 13° Salário + Adicional de Férias | D119: =D82 -> 186.0976312
A120: 4.2 | B120: Encargos previdenciários e FGTS | D120: =D72 -> 412.26564
A121: 4.3 | B121: Afastamento Maternidade | D121: =D89 -> 0
A122: 4.4 | B122: Custo de Rescisão | D122: =D100 -> 101.91483
A123: 4.5 | B123: Custo de Reposição do profissional ausente | D123: =D113 -> 179.2167103
A124: 4.6 | B124: Outros | D124: 0
B125: total | D125: =SUM(D119:D124) -> 879.4948115
B127: Módulo 5: Custos indiretos, tributos e lucros
A129: 5 | B129: Custos indiretos, tributos e lucros | C129: Descrição | D129: Total
A130: A | B130: Custos indiretos, tributos e lucros (Portaria n° 7 da IN n°2/2008) | C130: 0.03 | D130: =D147*C130 -> 78.75656935
A131: B | B131: Tributos
A132: C | B132: B.1 Tributos Federais
B133: B.1.1. PIS | C133: 0.0165 | D133: =((D147+D130+D138)*C133)/(1-C133) -> 48.44432693
B134: B.1.2. COFINS | C134: 0.076 | D134: =((D147+D130+D138)*C134)/(1-C134) -> 237.5062089
B135: B.2. Tributos Estaduais (ISS) | C135: 0.05 | D135: =((D147+D130+D138)*C135)/(1-C135) -> 151.9776572
B136: B.3. Tributos Municipais | D136: =C136*E34 -> 0
B137: B.4. Outros Tributos | D137: =C137*E34 -> 0
B138: Lucro | C138: 0.0679 | D138: =(D147+D130)*C138 -> 183.5999397
B139: total | D139: =SUM(D130:D138) -> 700.2847021
B141: Anexo III - B - Quadro-resumo do custo por empregado
A142: Mão-de-obra vinculada à execução contratual (valor por empregado) | D142: Valor
A143: A | B143: Módulo 1 - Composição da Remuneração | D143: =E34 -> 1151.58
A144: B | B144: Módulo 2 - Benefícios Mensais e Diários | D144: =D49 -> 532
A145: C | B145: Módulo 3 - Insumos Diversos (uniformes, materiais, equipamentos e outros) | D145: =D58 -> 62.14416667
A146: D | B146: Modulo 4 - Encargos Sociais e Trabalhistas | D146: =D125 -> 879.4948115
A147: Subtotal (A+B+C+D) | D147: =SUM(D143:D146) -> 2625.218978
A148: E | B148: Módulo 5 - Custos Indiretos, tributos e lucros | D148: =D139 -> 700.2847021
B149: Valor total por empregado | D149: =D147+D148 -> 3325.50368
B153: Anexo III - C - Quadro-resumo - Valor Mensal dos Serviços
B154: Tipo de Serviço | C154: Valor Proposto por empregado (B) | D154: Qtde de empregados por posto | E154: Valor proposto por posto | F154: Qtde e postos | G154: Valor total dos serviços
A155: (A) | D155: (C ) | E155: (D)=(BXC) | F155: (E) | G155: (F)=(DxE)
A156: I | B156: Serviço 1 | C156: =D149 -> 3325.50368 | D156: 1 | E156: =C156 -> 3325.50368 | F156: 1 | G156: =E156*F156 -> 3325.50368
A157: II | B157: Serviço 2 (indicar)
A159: Valor Mensal do serviço (I+II) | G159: =SUM(G156+G157) -> 3325.50368
B161: anexo III - D - Quadro Demonstrativo - Valor Global da Proposta
B163: Valor Global da Proposta
B164: Descrição | C164: Valor
A165: A | B165: Valor proposto por unidade de medida | C165: =C156 -> 3325.50368
A166: B | B166: Valor Mensal do serviço | C166: =G159 -> 3325.50368
A167: C | B167: Valor Global da Proposta (valor mensal do serviço x n° meses do contrato | C167: =12*G159 -> 39906.04416
B170: III - INSUMOS
A172: Uniformes: Eletricista e Ajudante | C172: Unid. | D172: Qtde. | E172: Preço Unitário | F172: Total
A173: 01. | B173: Conjunto de camisa e calça em brim | C173: Conjunto | D173: 4 | E173: 53.1 | F173: =D173*E173 -> 212.4
A174: 02. | B174: Camiseta branca em algodão | C174: Unidade | D174: 10 | E174: 8.16 | F174: =D174*E174 -> 81.6
A175: 03. | B175: Meias Brancas em Algodão | C175: Par | D175: 12 | E175: 10.4 | F175: 124.8
A176: EPI: Eletricista e Ajudante
A177: 04. | B177: Luvas Eletricista 10 kvc classe 1 | C177: Par | D177: 1 | E177: 274.8 | F177: =D177*E177 -> 274.8
A178: 05. | B178: Capacete de Segurança | C178: Unidade | D178: 1 | E178: 8.15 | F178: =D178*E178 -> 8.15
A179: 06. | B179: Botas de Borracha | C179: Par | D179: 1 | E179: 39.55 | F179: 39.55
A180: 07. | B180: Óculos de Proteção | C180: Unidade | D180: 1 | E180: 4.43 | F180: 4.43
B181: Total Mensal dos Insumos

Sheet Ajudante
B2: Contratação de empresa especializada para serviços de expansão, operação e manutenção preventiva e corretiva necessários para a execução dos serviços nos equipamentos da Central de Ar Condicionados
A5: Planilha de Proposta de Preço
B6: Processo nº:59500.0001034/2013-56
B7: Licitação nº__________ Pregão Eletrônico nº ____/2013
A8: Dia _______/_____________/____________ às _____:_____ horas
A13: A | B13: Data da Apresentação da Proposta
A14: B | B14: Município/UF | C14: Brasília/DF
A15: C | B15: Ano Arcordo, Convenção Coletiva ou Sentença Normativa em Dissídio Coletivo. | C15: 2013
A16: D | B16: N° de meses de execução contratual | C16: 12 meses
B18: Mão de Obra vinculada à execução contratual
B19: Dados complementares para composição dos custos referentes à mão-de-obra
A20: 1 | B20: Tipo de Serviço | C20: Ajudante
A21: 2 | B21: Salário normativo da categoria profissional | C21: 780
A22: 3 | B22: Categoria profissional | C22: Ajudante
A23: 4 | B23: Data base da categoria | C23: 1° de janeiro de 2013
B26: Módulo 1: Composição da Remuneração
A28: 1 | B28: Composição da Remuneração | C28: Percentual | D28: Salário | E28: Total
A29: A | B29: Salário Base da Categoria | D29: 780 | E29: =D29 -> 780
A30: B | B30: Adicional de Periculosidade | C30: 0 | D30: =D29*C30 -> 0 | E30: =D30 -> 0
A31: C | B31: Adicional de Insalubridade | C31: 0 | D31: 0 | E31: =D31*15 -> 0
A32: D | B32: Intervalo Intrajornada | C32: 0 | D32: 0 | E32: =D32*15 -> 0
A33: E | B33: Outros | C33: 0 | D33: =D29*C33 -> 0 | E33: 0
A34: Total da Remuneração | E34: =E29+E30+E31 -> 780
B38: Módulo 2: Benefícios Mensais e Diários
A40: 2 | B40: Benefícios Mensais e Diários | D40: Valor
A41: A | B41: Transporte (R$5,00 x 2 vales x 22 dias) (R$ 1151,58 x 6%) | C41: 0 | D41: =3*2*22 -> 132
A42: B | B42: Auxílio Alimentação (R$18,00 x 22 dias) | C42: 0 | D42: =18*22 -> 396
A43: C | B43: Assistencia Médica e odontológica * (CCT 2013) | C43: 0 | D43: 4
A44: D | B44: Auxílio Creche | C44: 0
A45: E | B45: Seguro de Vida * | C45: 0
A46: F | B46: Auxílio Invalidez | C46: 0
A47: G | B47: Auxílio Funeral | C47: 0
A48: H | B48: Outros | C48: 0
A49: total de benefícios mensais e diários | C49: 0 | D49: =D41+D42+D43+D44+D45+D46+D47 -> 532
B51: Módulo 3: Insumos Diversos
A53: 3 | B53: Insumos Diversos | D53: Valor
A54: A | B54: Uniformes | D54: =(F173+F174+F175)/12 -> 34.9
A55: B | B55: Materiais | D55: 0
A56: C | B56: EPIs | D56: =(F177+F178+F179+F180)/12 -> 27.24416667
A57: D | B57: Outros | D57: 0
B58: Total de Insumos Diversos | D58: =SUM(D54:D57) -> 62.14416667
B60: Módulo 4:Encargos Sociais e Trabalhistas
B62: Submódulo 4.1: Encargos Previdenciários e FGTS
A63: 4.1 | B63: Encargos Previdenciários e FGTS | C63: % | D63: Valor (R$)
A64: A | B64: INSS (art. 22,inc. I da Lei 8212/91) | C64: 0.2 | D64: =C64*E34 -> 156
A65: B | B65: SESI OU SESC | C65: 0.015 | D65: =C65*E34 -> 11.7
A66: C | B66: SENAI OU SENAC | C66: 0.01 | D66: =C66*E34 -> 7.8
A67: D | B67: INCRA | C67: 0.002 | D67: =C67*E34 -> 1.56
A68: E | B68: Salário Educação | C68: 0.025 | D68: =C68*E34 -> 19.5
A69: F | B69: FGTS | C69: 0.08 | D69: =C69*E34 -> 62.4
A70: G | B70: SEBRAE | C70: 0.006 | D70: =C70*E34 -> 4.68
A71: H | B71: Seguro Acidente de Trabalho (decreto 6042/2007) | C71: 0.02 | D71: =C71*E34 -> 15.6
A72: Total | C72: =SUM(C64:C71) -> 0.358 | D72: =C72*E34 -> 279.24
B76: Submódulo 4.2: 13° Salário e Adicional de Férias
A77: 4.2 | B77: 13° Salário e Adicional de Férias | D77: Valor
A78: A | B78: 13° Salário - Manual MPOG | C78: 0.0893 | D78: =C78*E34 -> 69.654
A79: B | B79: Adicional de Férias - Manual MPOG | C79: 0.0298 | D79: =C79*E34 -> 23.244
A80: C | B80: Subtotal | C80: 0.119 | D80: =C80*E34 -> 92.82
A81: D | B81: Incidência do Submódulo 4.1 sobre o 13° Salário e adicional de Férias | C81: =C72*C80 -> 0.042602 | D81: =C81*E34 -> 33.22956
A82: total | C82: =C80+C81 -> 0.161602 | D82: =D80+D81 -> 126.04956
B85: Submódulo 4.3:Afastamento Maternidade
A86: 4.3 | B86: Afastamento Maternidade | D86: Valor
A87: A | B87: Afastamento Maternidade ( CCT 2013) | C87: 0 | D87: 0
A88: B | B88: Incidência do submódulo 4.1 sobre afastamento maternidade | C88: 0 | D88: 0
B89: total | C89: 0 | D89: 0
B92: Submódulo 4.4: Provisão para Rescisão
A93: 4.4 | B93: Provisão para Rescisão | D93: Valor (R$)
A94: A | B94: Aviso prévio Indenizado (Portaria n° 7 da IN n°2/2008) | C94: =0.42% -> 0.0042 | D94: =C94*E34 -> 3.276
A95: B | B95: Incidencia do FGTS sobre aviso prévio indenizado (provisão para rescisão) | C95: 0.0003 | D95: =C95*E34 -> 0.234
A96: C | B96: Multa do FGTS do Aviso prévio indenizado (Manual do MPOG) | C96: 0.0435 | D96: =C96*E34 -> 33.93
A97: D | B97: Aviso prévio trabalhado - Manual MPOG | C97: 0.0004 | D97: =C97*E34 -> 0.312
A98: E | B98: Incidencia do submódulo 4.1 sobre o aviso prévio trabalhado | C98: 0.0001 | D98: =C98*E34 -> 0.078
A99: F | B99: Multa FGTS do aviso prévio trabalhado | C99: 0.04 | D99: =C99*E34 -> 31.2
A100: Total | C100: =SUM(C94:C99) -> 0.0885 | D100: =C100*E34 -> 69.03
B103: Submódulo 4.5: Custo de Reposição do Profissional Ausente
A104: 4.5 | B104: Composição do Custo de Reposição do Profissional Ausente | D104: Valor (R$)
A105: A | B105: Férias (Portaria n° 7 da IN n°2/2008) | C105: 0.0893 | D105: =C105*E34 -> 69.654
A106: B | B106: Ausencia por doença (Portaria n° 7 da IN n°2/2008) | C106: 0.0166 | D106: =C106*E34 -> 12.948
A107: C | B107: Licença paternidade (Portaria n° 7 da IN n°2/2008) | C107: 0.0002 | D107: =C107*E34 -> 0.156
A108: D | B108: Ausências Legais | C108: 0.0082 | D108: =C108*E34 -> 6.396
A109: E | B109: Ausências por acidente de trabalho | C109: 0.0003 | D109: =C109*E34 -> 0.234
A110: F | B110: Outros | C110: 0 | D110: =C110*E34 -> 0
B111: Subtotal | C111: =SUM(C105:C110) -> 0.1146 | D111: =C111*E34 -> 89.388
A112: G | B112: Inciencia do submódulo 4.1 sobre o custo de reposição | C112: =C111*C72 -> 0.0410268 | D112: =C112*E34 -> 32.000904
B113: Total | C113: =C111+C112 -> 0.1556268 | D113: =D111+D112 -> 121.388904
B116: Quadro Resumo - Módulo 4 - Encargos Sociais e Trabalhistas
A118: 4 | B118: Encargos Sociais e Trabalhistas | D118: Valor
A119: 4.1 | B119: 13° Salário + Adicional de Férias | D119: =D82 -> 126.04956
A120: 4.2 | B120: Encargos previdenciários e FGTS | D120: =D72 -> 279.24
A121: 4.3 | B121: Afastamento Maternidade | D121: =D89 -> 0
A122: 4.4 | B122: Custo de Rescisão | D122: =D100 -> 69.03
A123: 4.5 | B123: Custo de Reposição do profissional ausente | D123: =D113 -> 121.388904
A124: 4.6 | B124: Outros | D124: 0
B125: total | D125: =SUM(D119:D124) -> 595.708464
B127: Módulo 5: Custos indiretos, tributos e lucros
A129: 5 | B129: Custos indiretos, tributos e lucros | C129: Descrição | D129: Total
A130: A | B130: Custos indiretos, tributos e lucros (Portaria n° 7 da IN n°2/2008) | C130: 0.03 | D130: =D147*C130 -> 59.09557892
A131: B | B131: Tributos
A132: C | B132: B.1 Tributos Federais
B133: B.1.1. PIS | C133: 0.0165 | D133: =((D147+D130+D138)*C133)/(1-C133) -> 36.35056186
B134: B.1.2. COFINS | C134: 0.076 | D134: =((D147+D130+D138)*C134)/(1-C134) -> 178.2145544
B135: B.2. Tributos Estaduais (ISS) | C135: 0.05 | D135: =((D147+D130+D138)*C135)/(1-C135) -> 114.0375681
B136: B.3. Tributos Municipais | D136: =C136*E34 -> 0
B137: B.4. Outros Tributos | D137: =C137*E34 -> 0
B138: Lucro | C138: 0.0679 | D138: =(D147+D130)*C138 -> 137.7655834
B139: total | D139: =SUM(D130:D138) -> 525.4638467
B141: Anexo III - B - Quadro-resumo do custo por empregado
A142: Mão-de-obra vinculada à execução contratual (valor por empregado) | D142: Valor
A143: A | B143: Módulo 1 - Composição da Remuneração | D143: =E34 -> 780
A144: B | B144: Módulo 2 - Benefícios Mensais e Diários | D144: =D49 -> 532
A145: C | B145: Módulo 3 - Insumos Diversos (uniformes, materiais, equipamentos e outros) | D145: =D58 -> 62.14416667
A146: D | B146: Modulo 4 - Encargos Sociais e Trabalhistas | D146: =D125 -> 595.708464
A147: Subtotal (A+B+C+D) | D147: =SUM(D143:D146) -> 1969.852631
A148: E | B148: Módulo 5 - Custos Indiretos, tributos e lucros | D148: =D139 -> 525.4638467
B149: Valor total por empregado | D149: =D147+D148 -> 2495.316477
B153: Anexo III - C - Quadro-resumo - Valor Mensal dos Serviços
B154: Tipo de Serviço | C154: Valor Proposto por empregado (B) | D154: Qtde de empregados por posto | E154: Valor proposto por posto | F154: Qtde e postos | G154: Valor total dos serviços
A155: (A) | D155: (C ) | E155: (D)=(BXC) | F155: (E) | G155: (F)=(DxE)
A156: I | B156: Serviço 1 | C156: =D149 -> 2495.316477 | D156: 1 | E156: =C156 -> 2495.316477 | F156: 1 | G156: =E156*F156 -> 2495.316477
A157: II | B157: Serviço 2 (indicar)
A159: Valor Mensal do serviço (I+II) | G159: =SUM(G156+G157) -> 2495.316477
B161: anexo III - D - Quadro Demonstrativo - Valor Global da Proposta
B163: Valor Global da Proposta
B164: Descrição | C164: Valor
A165: A | B165: Valor proposto por unidade de medida | C165: =C156 -> 2495.316477
A166: B | B166: Valor Mensal do serviço | C166: =G159 -> 2495.316477
A167: C | B167: Valor Global da Proposta (valor mensal do serviço x n° meses do contrato | C167: =12*G159 -> 29943.79773
B170: III - INSUMOS
A172: Uniformes: Eletricista e Ajudante | C172: Unid. | D172: Qtde. | E172: Preço Unitário | F172: Total
A173: 01. | B173: Conjunto de camisa e calça em brim | C173: Conjunto | D173: 4 | E173: 53.1 | F173: =D173*E173 -> 212.4
A174: 02. | B174: Camiseta branca em algodão | C174: Unidade | D174: 10 | E174: 8.16 | F174: =D174*E174 -> 81.6
A175: 03. | B175: Meias Brancas em Algodão | C175: Par | D175: 12 | E175: 10.4 | F175: 124.8
A176: EPI: Eletricista e Ajudante
A177: 04. | B177: Luvas Eletricista 10 kvc classe 1 | C177: Par | D177: 1 | E177: 274.8 | F177: =D177*E177 -> 274.8
A178: 05. | B178: Capacete de Segurança | C178: Unidade | D178: 1 | E178: 8.15 | F178: =D178*E178 -> 8.15
A179: 06. | B179: Botas de Borracha | C179: Par | D179: 1 | E179: 39.55 | F179: 39.55
A180: 07. | B180: Óculos de Proteção | C180: Unidade | D180: 1 | E180: 4.43 | F180: 4.43
B181: Total Mensal dos Insumos
